fUST/lending_fUST_20250203
["ID","MTS","AMOUNT","RATE_DAILY","PERIOD"]
[351385738,1738549850872,-500.0,0.00016575,2]
[351385739,1738549850882,-500.0,0.00016575,2]
[351385740,1738549850892,-500.0,0.00016575,2]
[351385741,1738549850902,-500.0,0.00016575,2]
[351385742,1738549850911,-1489.97,0.00016575,2]
[351385743,1738549850924,-500.0,0.00016575,2]
[351385744,1738549850934,-500.0,0.00016575,2]
[351385745,1738549850943,-500.0,0.00016575,2]
[351385746,1738549850958,-507.27029917,0.00016575,2]
[351385747,1738549850967,-3840.19,0.00016575,2]
[351385748,1738549850979,-500.0,0.00016575,2]
[351385749,1738549850989,-500.0,0.00016575,2]
[351385750,1738549850999,-500.0,0.00016575,2]
[351385751,1738549851009,-500.0,0.00016575,2]
[351385752,1738549851018,-500.0,0.00016575,2]
[351385753,1738549851028,-500.0,0.00016575,2]
[351385755,1738549851038,-500.0,0.00016575,2]
[351385756,1738549851048,-1000.0,0.00016575,7]
[351385757,1738549851058,-500.0,0.00016575,2]
[351385758,1738549851069,-500.0,0.00016575,2]
[351385760,1738549851078,-500.0,0.00016575,2]
[351385761,1738549851090,-500.0,0.00016575,2]
[351385762,1738549851100,-341.89204792,0.00016575,2]
[351385764,1738549851110,-500.0,0.00016575,2]
[351385765,1738549851120,-500.0,0.00016575,2]
[351385766,1738549851130,-936.36,0.00016575,2]
[351385767,1738549851140,-500.0,0.00016575,2]
[351385769,1738549851149,-691.04,0.00016575,2]
[351385770,1738549851159,-884.75,0.00016575,2]
[351385771,1738549851168,-507.7260653,0.00016575,2]
[351385772,1738549851178,-500.0,0.00016575,2]
[351385774,1738549851187,-500.0,0.00016575,2]
[351385775,1738549851196,-500.0,0.00016575,2]
[351385776,1738549851211,-500.0,0.00016575,2]
[351385778,1738549851220,-500.0,0.00016575,2]
[351385779,1738549851230,-530.65107731,0.00016575,2]
[351385780,1738549851239,-500.0,0.00016575,2]
[351385781,1738549851248,-500.0,0.00016575,2]
[351385783,1738549851257,-500.0,0.00016575,2]
[351385784,1738549851267,-1569.05,0.00016575,2]
[351385785,1738549851276,-500.0,0.00016575,2]
[351385787,1738549851285,-500.0,0.00016575,2]
[351385788,1738549851294,-1736.24,0.00016575,2]
[351385789,1738549851304,-500.0,0.00016575,2]
[351385790,1738549851314,-500.0,0.00016575,2]
[351385792,1738549851323,-500.0,0.00016575,2]
[351385793,1738549851333,-500.0,0.00016575,2]
[351385794,1738549851343,-1251.53,0.00016575,2]
[351385795,1738549851352,-500.0,0.00016575,2]
[351385797,1738549851361,-500.0,0.00016575,2]
[351385798,1738549851371,-613.10156491,0.00016575,2]
[351385799,1738549851385,-583.34,0.00016575,2]
[351385801,1738549851395,-868.21,0.00016575,2]
[351385802,1738549851404,-500.0,0.00016575,2]
[351385803,1738549851413,-500.0,0.00016575,2]
[351385805,1738549851422,-500.0,0.00016575,2]
[351385806,1738549851431,-500.0,0.00016575,2]
[351385807,1738549851441,-500.0,0.00016575,2]
[351385808,1738549851454,-500.0,0.00016575,2]
[351385810,1738549851463,-417.40543914,0.00016575,2]
[351385811,1738549851473,-500.0,0.00016575,2]
[351385812,1738549851482,-500.0,0.00016575,2]
[351385814,1738549851492,-500.0,0.00016575,2]
[351385815,1738549851501,-500.0,0.00016575,2]
[351385816,1738549851511,-500.0,0.00016575,2]
[351385817,1738549851520,-500.0,0.00016575,2]
[351385819,1738549851530,-500.0,0.00016575,2]
[351385820,1738549851539,-501.76913513,0.00016575,2]
[351385821,1738549851548,-500.0,0.00016575,2]
[351385823,1738549851557,-500.0,0.00016575,2]
[351385824,1738549851567,-500.0,0.00016575,2]
[351385825,1738549851576,-202.04903747,0.00016575,2]
[351385826,1738549851586,-500.0,0.00016575,2]
[351385828,1738549851595,-500.0,0.00016575,2]
[351385829,1738549851605,-279.29041085,0.00016575,2]
[351385830,1738549851614,-500.0,0.00016575,2]
[351385831,1738549851623,-500.0,0.00016575,2]
[351385833,1738549851632,-7171.72,0.00016575,2]
[351385834,1738549851641,-500.0,0.00016575,2]
[351385835,1738549851650,-502.37686188,0.00016575,2]
[351385837,1738549851659,-181.36124753,0.00016612,2]
[351385838,1738549851668,-163.77902259,0.00016654,2]
[351385841,1738549851760,-475.74947999,0.00016712,2]
[351385843,1738549851769,-497.10932167,0.00016712,2]
[351385844,1738549851779,-498.56661693,0.00016712,2]
[351385845,1738549851788,-500.0,0.00016712,2]
[351385846,1738549851798,-500.0,0.00016712,2]
[351385848,1738549851807,-500.0,0.00016712,2]
[351385849,1738549851816,-500.0,0.00016712,2]
[351385850,1738549851826,-500.0,0.00016712,2]
[351385852,1738549851835,-469.20708476,0.00016712,2]
[351385853,1738549851845,-500.0,0.00016712,2]
[351385854,1738549851855,-503.30582109,0.00016712,2]
[351385855,1738549851865,-511.55412817,0.00016712,2]
[351385857,1738549851874,-500.0,0.00016712,2]
[351385858,1738549851884,-500.0,0.00016712,2]
[351385859,1738549851894,-500.0,0.00016712,2]
[351385860,1738549851906,-500.0,0.00016712,2]
[351385862,1738549851917,-500.0,0.00016712,2]
[351385863,1738549851927,-500.0,0.00016712,2]
[351385864,1738549851937,-500.0,0.00016712,2]
[351385866,1738549851947,-500.0,0.00016712,2]
[351385867,1738549851962,-505.65156173,0.00016712,2]
[351385868,1738549851972,-500.0,0.00016712,2]
[351385869,1738549851984,-500.0,0.00016712,2]
[351385871,1738549851993,-500.0,0.00016712,2]
[351385872,1738549852004,-500.0,0.00016712,2]
[351385873,1738549852015,-500.0,0.00016712,2]
[351385874,1738549852024,-500.0,0.00016712,2]
[351385876,1738549852034,-503.56534388,0.00016712,2]
[351385877,1738549852044,-500.0,0.00016712,2]
[351385878,1738549852054,-500.0,0.00016712,2]
[351385880,1738549852064,-503.03416,0.00016712,2]
[351385881,1738549852074,-500.0,0.00016712,2]
[351385882,1738549852084,-504.45380603,0.00016712,2]
[351385883,1738549852094,-463.45570875,0.00016712,2]
[351385885,1738549852105,-250.7301089,0.00016712,2]
[351385886,1738549852115,-507.08148543,0.00016712,2]
[351385887,1738549852125,-505.26949424,0.00016712,2]
[351385889,1738549852135,-500.79357428,0.00016712,2]
[351385890,1738549852145,-500.0,0.00016712,2]
[351385891,1738549852155,-500.0,0.00016712,2]
[351385892,1738549852165,-627.39936324,0.00016712,2]
[351385894,1738549852175,-500.0,0.00016712,2]
[351385895,1738549852184,-500.0,0.00016712,2]
[351385896,1738549852193,-500.0,0.00016712,2]
[351385897,1738549852208,-500.0,0.00016712,2]
[351385899,1738549852219,-500.0,0.00016712,2]
[351385900,1738549852229,-500.0,0.00016712,2]
[351385901,1738549852239,-500.0,0.00016712,2]
[351385902,1738549852250,-500.0,0.00016712,2]
[351385904,1738549852260,-500.0,0.00016712,2]
[351385905,1738549852270,-504.02375588,0.00016712,2]
[351385906,1738549852281,-500.0,0.00016712,2]
[351385908,1738549852292,-508.43670691,0.00016712,2]
[351385909,1738549852302,-500.0,0.00016712,2]
[351385910,1738549852312,-502.68275942,0.00016712,2]
[351385911,1738549852323,-500.0,0.00016712,2]
[351385913,1738549852333,-500.0,0.00016712,2]
[351385914,1738549852344,-500.0,0.00016712,2]
[351385915,1738549852356,-500.0,0.00016712,2]
[351385917,1738549852365,-500.0,0.00016712,2]
[351385918,1738549852376,-500.0,0.00016712,2]
[351385919,1738549852387,-391.73661431,0.00016712,2]
[351385920,1738549852397,-500.0,0.00016712,2]
[351385922,1738549852409,-500.0,0.00016712,2]
[351385923,1738549852419,-176.29711112,0.00016712,2]
[351385924,1738549852430,-500.0,0.00016712,2]
[351385926,1738549852441,-500.0,0.00016712,2]
[351385927,1738549852453,-500.0,0.00016712,2]
[351385928,1738549852466,-500.0,0.00016712,2]
[351385929,1738549852476,-500.0,0.00016712,2]
[351385931,1738549852486,-500.0,0.00016712,2]
[351385932,1738549852496,-500.0,0.00016712,2]
[351385933,1738549852507,-500.0,0.00016712,2]
[351385934,1738549852517,-500.0,0.00016712,2]
[351385936,1738549852527,-505.71894488,0.00016712,2]
[351385937,1738549852537,-500.0,0.00016712,2]
[351385938,1738549852548,-503.03276632,0.00016712,2]
[351385940,1738549852558,-500.0,0.00016712,2]
[351385941,1738549852568,-500.0,0.00016712,2]
[351385942,1738549852578,-500.0,0.00016712,2]
[351385943,1738549852587,-500.0,0.00016712,2]
[351385945,1738549852597,-500.0,0.00016712,2]
[351385946,1738549852607,-500.0,0.00016712,2]
[351385947,1738549852617,-500.0,0.00016712,2]
[351385948,1738549852627,-500.0,0.00016712,2]
[351385950,1738549852636,-549.13,0.00016712,2]
[351385951,1738549852645,-501.32519934,0.00016712,2]
[351385952,1738549852655,-500.0,0.00016712,2]
[351385953,1738549852664,-500.0,0.00016712,2]
[351385955,1738549852674,-462.65437725,0.00016712,2]
[351385956,1738549852683,-575.70669736,0.00016712,2]
[351385957,1738549852692,-500.91077074,0.00016712,2]
[351385959,1738549852706,-503.5598114,0.00016712,2]
[351385960,1738549852716,-500.0,0.00016712,2]
[351385961,1738549852726,-500.0,0.00016712,2]
[351385962,1738549852736,-500.0,0.00016712,2]
[351385964,1738549852746,-500.0,0.00016712,2]
[351385965,1738549852756,-500.0,0.00016712,2]
[351385966,1738549852767,-396.85555231,0.00016712,2]
[351385968,1738549852778,-500.0,0.00016712,2]
[351385969,1738549852789,-503.07808528,0.00016712,2]
[351385970,1738549852799,-500.0,0.00016712,2]
[351385971,1738549852810,-500.0,0.00016712,2]
[351385972,1738549852821,-500.0,0.00016712,2]
[351385973,1738549852831,-500.0,0.00016712,2]
[351385974,1738549852842,-500.0,0.00016712,2]
[351385975,1738549852852,-500.0,0.00016712,2]
[351385976,1738549852863,-500.0,0.00016712,2]
[351385977,1738549852873,-500.0,0.00016712,2]
[351385978,1738549852883,-505.3917942,0.00016712,2]
[351385979,1738549852894,-500.0,0.00016712,2]
[351385980,1738549852904,-500.0,0.00016712,2]
[351385981,1738549852916,-500.0,0.00016712,2]
[351385982,1738549852927,-500.0,0.00016712,2]
[351385983,1738549852937,-500.0,0.00016712,2]
[351385984,1738549852948,-532.90786599,0.00016712,2]
[351385985,1738549852967,-534.13021298,0.00016712,2]
[351385986,1738549852979,-500.0,0.00016712,2]
[351385987,1738549852989,-656.58,0.00016712,2]
[351385988,1738549852999,-500.0,0.00016712,2]
[351385989,1738549853011,-500.0,0.00016712,2]
[351385990,1738549853023,-508.8201736,0.00016712,2]
[351385991,1738549853034,-502.02526665,0.00016712,2]
[351385993,1738549853049,-500.0,0.00016712,2]
[351385994,1738549853063,-500.0,0.00016712,2]
[351385995,1738549853074,-500.0,0.00016712,2]
[351385996,1738549853088,-431.97086936,0.00016712,2]
[351385998,1738549853098,-567.58,0.00016712,2]
[351385999,1738549853109,-500.0,0.00016712,2]
[351386000,1738549853123,-507.11615498,0.00016712,2]
[351386002,1738549853134,-507.11993169,0.00016712,2]
[351386003,1738549853146,-500.0,0.00016712,2]
[351386004,1738549853158,-500.0,0.00016712,2]
[351386006,1738549853170,-500.0,0.00016712,2]
[351386007,1738549853180,-514.79,0.00016712,2]
[351386008,1738549853190,-500.0,0.00016712,2]
[351386009,1738549853207,-500.0,0.00016712,2]
[351386012,1738549853291,-823.63,0.00016712,2]
[351386014,1738549853302,-565.64966451,0.00016712,2]
[351386015,1738549853313,-500.0,0.00016712,2]
[351386016,1738549853325,-500.0,0.00016712,2]
[351386018,1738549853337,-506.64041338,0.00016712,2]
[351386019,1738549853348,-1310.86,0.00016712,2]
[351386020,1738549853359,-500.0,0.00016712,2]
[351386021,1738549853369,-500.0,0.00016712,2]
[351386023,1738549853380,-496.33586959,0.00016712,2]
[351386024,1738549853390,-500.0,0.00016712,2]
[351386025,1738549853400,-500.0,0.00016712,2]
[351386026,1738549853411,-2914.67,0.00016712,2]
[351386028,1738549853420,-500.0,0.00016712,2]
[351386029,1738549853431,-5771.54,0.00016712,2]
[351386030,1738549853441,-500.0,0.00016712,2]
[351386031,1738549853450,-500.0,0.00016712,2]
[351386033,1738549853463,-500.0,0.00016712,2]
[351386034,1738549853474,-616.14,0.00016712,2]
[351386035,1738549853484,-524.66387054,0.00016712,2]
[351386036,1738549853494,-500.0,0.00016712,2]
[351386038,1738549853504,-500.0,0.00016712,2]
[351386039,1738549853516,-500.0,0.00016712,2]
[351386040,1738549853527,-636.17617755,0.00016712,2]
[351386042,1738549853537,-390.39197445,0.00016712,2]
[351386043,1738549853548,-500.0,0.00016712,2]
[351386044,1738549853559,-500.0,0.00016712,2]
[351386045,1738549853570,-500.0,0.00016712,2]
[351386047,1738549853581,-620.42,0.00016712,2]
[351386048,1738549853592,-500.0,0.00016712,2]
[351386049,1738549853602,-374.11629205,0.00016712,2]
[351386050,1738549853613,-500.0,0.00016712,2]
[351386052,1738549853624,-500.0,0.00016712,2]
[351386053,1738549853634,-500.0,0.00016712,2]
[351386054,1738549853644,-1688.07,0.00016712,2]
[351386056,1738549853654,-9757.83,0.00016712,2]
[351386057,1738549853664,-500.0,0.00016712,2]
[351386058,1738549853675,-500.0,0.00016712,2]
[351386059,1738549853685,-508.08749264,0.00016712,2]
[351386061,1738549853695,-505.16514027,0.00016712,2]
[351386062,1738549853711,-543.56,0.00016712,2]
[351386063,1738549853721,-1000.0,0.00016712,2]
[351386064,1738549853733,-790.34,0.00016712,2]
[351386066,1738549853743,-872.06,0.00016712,2]
[351386067,1738549853753,-500.0,0.00016712,2]
[351386068,1738549853763,-500.0,0.00016712,2]
[351386070,1738549853773,-500.0,0.00016712,2]
[351386071,1738549853783,-500.0,0.00016712,2]
[351386072,1738549853792,-502.19842895,0.00016712,2]
[351386073,1738549853802,-500.0,0.00016712,2]
[351386075,1738549853812,-500.0,0.00016712,2]
[351386076,1738549853821,-550.86,0.00016712,2]
[351386077,1738549853831,-500.0,0.00016712,2]
[351386078,1738549853840,-500.0,0.00016712,2]
[351386080,1738549853849,-500.0,0.00016712,2]
[351386081,1738549853859,-734.97,0.00016712,2]
[351386082,1738549853870,-1793.15,0.00016712,2]
[351386084,1738549853880,-500.0,0.00016712,2]
[351386085,1738549853889,-500.0,0.00016712,2]
[351386086,1738549853900,-500.0,0.00016712,2]
[351386087,1738549853910,-500.0,0.00016712,2]
[351386089,1738549853920,-500.0,0.00016712,2]
[351386090,1738549853931,-500.0,0.00016712,2]
[351386091,1738549853942,-500.0,0.00016712,2]
[351386093,1738549853961,-500.0,0.00016712,2]
[351386094,1738549853973,-515.31944822,0.00016712,2]
[351386095,1738549853983,-523.34710049,0.00016712,2]
[351386096,1738549853995,-500.0,0.00016712,2]
[351386098,1738549854006,-500.0,0.00016712,2]
[351386099,1738549854017,-500.0,0.00016712,2]
[351386100,1738549854029,-500.0,0.00016712,2]
[351386101,1738549854041,-728.13,0.00016712,2]
[351386103,1738549854052,-500.0,0.00016712,2]
[351386104,1738549854063,-500.0,0.00016712,2]
[351386105,1738549854074,-207.54415717,0.00016712,2]
[351386107,1738549854085,-2228.5,0.00016712,2]
[351386108,1738549854098,-500.0,0.00016712,2]
[351386109,1738549854109,-500.0,0.00016712,2]
[351386110,1738549854120,-500.0,0.00016712,2]
[351386112,1738549854130,-500.0,0.00016712,2]
[351386113,1738549854142,-1489.97,0.00016712,2]
[351386114,1738549854154,-500.0,0.00016712,2]
[351386115,1738549854164,-500.0,0.00016712,2]
[351386117,1738549854174,-500.0,0.00016712,2]
[351386118,1738549854186,-3840.19,0.00016712,2]
[351386119,1738549854196,-509.16817881,0.00016712,2]
[351386121,1738549854211,-500.0,0.00016712,2]
[351386122,1738549854220,-500.0,0.00016712,2]
[351386123,1738549854230,-500.0,0.00016712,2]
[351386124,1738549854240,-500.0,0.00016712,2]
[351386126,1738549854250,-500.0,0.00016712,2]
[351386127,1738549854260,-500.0,0.00016712,2]
[351386128,1738549854271,-1000.0,0.00016712,7]
[351386129,1738549854282,-500.0,0.00016712,2]
[351386131,1738549854292,-500.0,0.00016712,2]
[351386132,1738549854302,-500.0,0.00016712,2]
[351386133,1738549854312,-500.0,0.00016712,2]
[351386135,1738549854321,-500.0,0.00016712,2]
[351386136,1738549854331,-936.36,0.00016712,2]
[351386137,1738549854341,-691.04,0.00016712,2]
[351386138,1738549854351,-884.75,0.00016712,2]
[351386140,1738549854360,-488.10882255,0.00016712,2]
[351386141,1738549854370,-500.0,0.00016712,2]
[351386142,1738549854380,-500.0,0.00016712,2]
[351386143,1738549854389,-500.0,0.00016712,2]
[351386145,1738549854399,-502.17441313,0.00016712,2]
[351386146,1738549854409,-500.0,0.00016712,2]
[351386147,1738549854419,-500.0,0.00016712,2]
[351386149,1738549854429,-1569.05,0.00016712,2]
[351386150,1738549854439,-500.0,0.00016712,2]
[351386151,1738549854448,-500.0,0.00016712,2]
[351386152,1738549854463,-1736.24,0.00016712,2]
[351386154,1738549854473,-500.0,0.00016712,2]
[351386155,1738549854483,-501.64424515,0.00016712,2]
[351386156,1738549854493,-500.0,0.00016712,2]
[351386158,1738549854503,-1251.53,0.00016712,2]
[351386159,1738549854514,-157.54760887,0.00016712,2]
[351386160,1738549854523,-500.0,0.00016712,2]
[351386161,1738549854534,-583.34,0.00016712,2]
[351386163,1738549854544,-868.21,0.00016712,2]
[351386164,1738549854553,-500.0,0.00016712,2]
[351386165,1738549854564,-500.0,0.00016712,2]
[351386167,1738549854574,-500.0,0.00016712,2]
[351386168,1738549854583,-500.0,0.00016712,2]
[351386169,1738549854593,-500.0,0.00016712,2]
[351386170,1738549854602,-500.0,0.00016712,2]
[351386172,1738549854612,-500.0,0.00016712,2]
[351386175,1738549854694,-500.0,0.00016712,2]
[351386176,1738549854707,-500.0,0.00016712,2]
[351386178,1738549854717,-500.0,0.00016712,2]
[351386179,1738549854727,-500.0,0.00016712,2]
[351386180,1738549854739,-374.90142079,0.00016712,2]
[351386181,1738549854750,-500.0,0.00016712,2]
[351386183,1738549854760,-500.0,0.00016712,2]
[351386184,1738549854771,-500.0,0.00016712,2]
[351386185,1738549854781,-500.0,0.00016712,2]
[351386186,1738549854791,-500.0,0.00016712,2]
[351386188,1738549854801,-500.0,0.00016712,2]
[351386189,1738549854811,-7171.72,0.00016712,2]
[351386190,1738549854821,-500.0,0.00016712,2]
[351386192,1738549854832,-500.0,0.00016773,2]
[351386193,1738549854842,-500.0,0.00016849,2]
[351386194,1738549854853,-500.0,0.00016849,2]
[351386195,1738549854863,-500.0,0.00016849,2]
[351386197,1738549854875,-257.69267289,0.00016849,2]
[351386198,1738549854886,-500.0,0.00016849,2]
[351386199,1738549854897,-500.0,0.00016849,2]
[351386201,1738549854907,-375.01966713,0.00016849,2]
[351386202,1738549854919,-500.0,0.00016849,2]
[351386203,1738549854931,-500.0,0.00016849,2]
[351386204,1738549854942,-500.0,0.00016849,2]
[351386205,1738549854959,-505.69410846,0.00016849,2]
[351386206,1738549854969,-500.0,0.00016849,2]
[351386207,1738549854980,-500.0,0.00016849,2]
[351386208,1738549854992,-500.0,0.00016849,2]
[351386209,1738549855003,-500.0,0.00016849,2]
[351386210,1738549855014,-557.12378526,0.00016849,2]
[351386211,1738549855024,-500.0,0.00016849,2]
[351386212,1738549855035,-500.0,0.00016849,2]
[351386213,1738549855047,-500.0,0.00016849,2]
[351386214,1738549855058,-500.0,0.00016849,2]
[351386215,1738549855069,-500.0,0.00016849,2]
[351386216,1738549855080,-500.0,0.00016849,2]
[351386217,1738549855090,-500.0,0.00016849,2]
[351386218,1738549855101,-500.0,0.00016849,2]
[351386219,1738549855111,-500.0,0.00016849,2]
[351386220,1738549855121,-500.0,0.00016849,2]
[351386222,1738549855132,-500.0,0.00016849,2]
[351386223,1738549855141,-500.0,0.00016849,2]
[351386224,1738549855151,-500.0,0.00016849,2]
[351386225,1738549855161,-500.0,0.00016849,2]
[351386226,1738549855171,-584.28263761,0.00016849,2]
[351386228,1738549855183,-500.0,0.00016849,2]
[351386229,1738549855192,-186.29873438,0.00016849,2]
[351386230,1738549855206,-375.31778165,0.00016849,2]
[351386232,1738549855215,-500.0,0.00016849,2]
[351386233,1738549855226,-500.0,0.00016849,2]
[351386234,1738549855237,-500.0,0.00016849,2]
[351386235,1738549855247,-500.0,0.00016849,2]
[351386237,1738549855259,-501.46349411,0.00016849,2]
[351386238,1738549855268,-500.0,0.00016849,2]
[351386239,1738549855279,-200.29236393,0.00016849,2]
[351386241,1738549855289,-500.0,0.00016849,2]
[351386242,1738549855299,-463.69816274,0.00016849,2]
[351386243,1738549855309,-500.0,0.00016849,2]
[351386244,1738549855318,-500.0,0.00016849,2]
[351386246,1738549855328,-500.0,0.00016849,2]
[351386247,1738549855337,-500.0,0.00016849,2]
[351386248,1738549855346,-500.0,0.00016849,2]
[351386249,1738549855356,-500.0,0.00016849,2]
[351386251,1738549855366,-546.84561717,0.00016849,2]
[351386252,1738549855375,-500.0,0.00016849,2]
[351386253,1738549855384,-549.13,0.00016849,2]
[351386254,1738549855393,-500.0,0.00016849,2]
[351386256,1738549855403,-500.0,0.00016849,2]
[351386257,1738549855412,-500.0,0.00016849,2]
[351386258,1738549855422,-500.0,0.00016849,2]
[351386260,1738549855431,-500.0,0.00016849,2]
[351386261,1738549855440,-500.0,0.00016849,2]
[351386262,1738549855450,-500.0,0.00016849,2]
[351386263,1738549855464,-500.0,0.00016849,2]
[351386265,1738549855473,-600.9630685,0.00016849,2]
[351386266,1738549855483,-500.0,0.00016849,2]
[351386267,1738549855492,-500.0,0.00016849,2]
[351386269,1738549855502,-500.0,0.00016849,2]
[351386270,1738549855512,-500.0,0.00016849,2]
[351386271,1738549855522,-500.0,0.00016849,2]
[351386272,1738549855532,-500.0,0.00016849,2]
[351386274,1738549855542,-500.0,0.00016849,2]
[351386275,1738549855552,-501.73240557,0.00016849,2]
[351386276,1738549855562,-500.0,0.00016849,2]
[351386277,1738549855571,-500.0,0.00016849,2]
[351386279,1738549855581,-656.58,0.00016849,2]
[351386280,1738549855591,-500.0,0.00016849,2]
[351386281,1738549855600,-500.0,0.00016849,2]
[351386282,1738549855609,-500.0,0.00016849,2]
[351386284,1738549855618,-500.0,0.00016849,2]
[351386285,1738549855628,-500.0,0.00016849,2]
[351386286,1738549855638,-567.58,0.00016849,2]
[351386288,1738549855648,-500.0,0.00016849,2]
[351386289,1738549855658,-550.35107339,0.00016849,2]
[351386290,1738549855668,-500.0,0.00016849,2]
[351386291,1738549855678,-514.79,0.00016849,2]
[351386293,1738549855688,-500.0,0.00016849,2]
[351386294,1738549855698,-500.0,0.00016849,2]
[351386295,1738549855712,-823.63,0.00016849,2]
[351386296,1738549855722,-500.0,0.00016849,2]
[351386298,1738549855733,-500.0,0.00016849,2]
[351386299,1738549855743,-1310.86,0.00016849,2]
[351386300,1738549855753,-500.0,0.00016849,2]
[351386302,1738549855763,-500.0,0.00016849,2]
[351386303,1738549855772,-500.0,0.00016849,2]
[351386304,1738549855783,-500.0,0.00016849,2]
[351386305,1738549855794,-2914.67,0.00016849,2]
[351386306,1738549855804,-5771.54,0.00016849,2]
[351386308,1738549855815,-500.0,0.00016849,2]
[351386309,1738549855825,-500.0,0.00016849,2]
[351386310,1738549855835,-500.0,0.00016849,2]
[351386311,1738549855846,-616.14,0.00016849,2]
[351386313,1738549855855,-500.0,0.00016849,2]
[351386314,1738549855865,-500.0,0.00016849,2]
[351386315,1738549855881,-500.0,0.00016849,2]
[351386317,1738549855893,-500.0,0.00016849,2]
[351386319,1738549855967,-500.0,0.00016849,2]
[351386321,1738549855977,-500.0,0.00016849,2]
[351386322,1738549855989,-500.0,0.00016849,2]
[351386323,1738549856000,-620.42,0.00016849,2]
[351386324,1738549856010,-500.0,0.00016849,2]
[351386326,1738549856020,-466.65300637,0.00016849,2]
[351386327,1738549856031,-1688.07,0.00016849,2]
[351386328,1738549856041,-9757.83,0.00016849,2]
[351386329,1738549856052,-500.0,0.00016849,2]
[351386331,1738549856063,-1000.0,0.00016849,2]
[351386332,1738549856074,-790.34,0.00016849,2]
[351386333,1738549856085,-872.06,0.00016849,2]
[351386334,1738549856096,-500.0,0.00016849,2]
[351386336,1738549856107,-335.02158631,0.00016849,2]
[351386337,1738549856119,-500.0,0.00016849,2]
[351386338,1738549856130,-386.46625524,0.00016849,2]
[351386339,1738549856141,-500.0,0.00016849,2]
[351386341,1738549856153,-550.86,0.00016849,2]
[351386342,1738549856163,-463.16017989,0.00016849,2]
[351386343,1738549856173,-500.0,0.00016849,2]
[351386344,1738549856183,-428.10145528,0.00016849,2]
[351386346,1738549856194,-734.97,0.00016849,2]
[351386347,1738549856208,-1793.15,0.00016849,2]
[351386348,1738549856218,-500.0,0.00016849,2]
[351386350,1738549856228,-500.0,0.00016849,2]
[351386351,1738549856238,-500.0,0.00016849,2]
[351386352,1738549856249,-500.0,0.00016849,2]
[351386353,1738549856259,-500.0,0.00016849,2]
[351386355,1738549856270,-500.0,0.00016849,2]
[351386356,1738549856280,-500.0,0.00016849,2]
[351386357,1738549856291,-500.0,0.00016849,2]
[351386358,1738549856301,-500.0,0.00016849,2]
[351386360,1738549856311,-728.13,0.00016849,2]
[351386361,1738549856323,-2228.5,0.00016849,2]
[351386362,1738549856333,-500.0,0.00016849,2]
[351386363,1738549856343,-500.0,0.00016849,2]
[351386365,1738549856354,-500.0,0.00016849,2]
[351386366,1738549856364,-500.0,0.00016849,2]
[351386367,1738549856373,-1489.97,0.00016849,2]